fUSD/lending_fUSD_20240828
["ID","MTS","AMOUNT","RATE_DAILY","PERIOD"]
[336500395,1724884921627,-500.0,0.00038356,120]
[336500396,1724884921663,-3450.47,0.00038356,120]
[336500397,1724884921695,-500.0,0.00038356,120]
[336500398,1724884921733,-500.0,0.00038356,120]
[336500399,1724884921781,-3042.48,0.00038356,120]
[336500400,1724884921820,-386.16215023,0.00038356,120]
[336500401,1724884921856,-625.62,0.00038356,120]
[336500402,1724884921895,-1919.76,0.00038356,120]
[336500403,1724884921939,-500.0,0.00038356,120]
[336500404,1724884921982,-500.0,0.00038356,120]
[336500405,1724884922021,-510.13530299,0.00038356,120]
[336500406,1724884922059,-5139.97,0.00038356,120]
[336500407,1724884922096,-504.34265616,0.00038356,120]
[336500408,1724884922131,-2930.49,0.00038356,120]
[336500409,1724884922167,-599.83,0.00038356,120]
[336500410,1724884922203,-2854.89,0.00038356,120]
[336500411,1724884922242,-1906.27,0.00038356,120]
[336500412,1724884922287,-1235.48,0.00038356,120]
[336500413,1724884922323,-500.0,0.00038356,120]
[336500414,1724884922358,-500.0,0.00038356,120]
[336500415,1724884922392,-500.0,0.00038356,120]
[336500416,1724884922425,-2541.48,0.00038356,120]
[336500417,1724884922461,-2197.23,0.00038356,120]
[336500418,1724884922493,-811.8,0.00038356,120]
[336500419,1724884922531,-500.0,0.00038356,120]
[336500420,1724884922565,-500.0,0.00038356,120]
[336500421,1724884922598,-1000.0,0.00038356,120]
[336500422,1724884922630,-4255.4,0.00038356,120]
[336500423,1724884922665,-500.0,0.00038356,120]
[336500424,1724884922699,-2305.54,0.00038356,120]
[336500425,1724884922734,-1831.63,0.00038356,120]
[336500426,1724884922772,-812.5,0.00038356,120]
[336500427,1724884922806,-5498.31,0.00038356,120]
[336500428,1724884922839,-500.0,0.00038356,120]
[336500429,1724884922873,-500.0,0.00038356,120]
[336500430,1724884922911,-500.0,0.00038356,120]
[336500431,1724884922944,-2063.28,0.00038356,120]
[336500432,1724884922980,-507.24782667,0.00038356,120]
[336500433,1724884923018,-500.0,0.00038356,120]
[336500434,1724884923053,-450.25915451,0.00038356,120]
[336500435,1724884923088,-2748.49,0.00038356,120]
[336500436,1724884923123,-668.39,0.00038356,120]
[336500437,1724884923157,-1467.24,0.00038356,120]
[336500438,1724884923193,-500.0,0.00038356,120]
[336500439,1724884923227,-500.0,0.00038356,120]
[336500440,1724884923262,-2487.02,0.00038356,120]
[336500441,1724884923296,-500.0,0.00038356,120]
[336500442,1724884923330,-722.98,0.00038356,120]
[336500443,1724884923364,-500.0,0.00038356,120]
[336500444,1724884923398,-1419.39,0.00038356,120]
[336500445,1724884923431,-500.0,0.00038356,120]
[336500446,1724884923473,-2709.24,0.00038356,120]
[336500447,1724884923512,-263.92081184,0.00038356,120]
[336500448,1724884923555,-1983.41,0.00038356,120]
[336500449,1724884923588,-519.33377564,0.00038356,120]
[336500450,1724884923624,-1924.85,0.00038356,120]
[336500451,1724884923660,-607.37,0.00038356,120]
[336500452,1724884923699,-1041.17,0.00038356,120]
[336500453,1724884923972,-500.0,0.00038356,120]
[336500454,1724884924015,-500.0,0.00038356,120]
[336500455,1724884924055,-500.0,0.00038356,120]
[336500456,1724884924096,-500.0,0.00038356,120]
[336500457,1724884924135,-500.0,0.00038356,120]
[336500458,1724884924175,-500.0,0.00038356,120]
[336500459,1724884924215,-500.0,0.00038356,120]
[336500460,1724884924252,-413.46971328,0.00038356,120]
[336500461,1724884924292,-500.0,0.00038356,120]
[336500462,1724884924333,-571.94,0.00038356,120]
[336500463,1724884924373,-500.0,0.00038356,120]
[336500464,1724884924411,-500.0,0.00038356,120]
[336500465,1724884924447,-500.0,0.00038356,120]
[336500466,1724884924483,-3739.68,0.00038356,120]
[336500467,1724884924521,-839.35,0.00038356,120]
[336500468,1724884924560,-500.0,0.00038356,120]
[336500469,1724884924598,-500.0,0.00038356,120]
[336500470,1724884924637,-513.17,0.00038356,120]
[336500471,1724884924676,-500.0,0.00038356,120]
[336500472,1724884924721,-684.22,0.00038356,120]
[336500473,1724884924764,-2003.64,0.00038356,120]
[336500474,1724884924803,-500.0,0.00038356,120]
[336500475,1724884924841,-500.0,0.00038356,120]
[336500476,1724884924882,-2043.01,0.00038356,120]
[336500477,1724884924926,-699.74,0.00038356,120]
[336500478,1724884924971,-544.16,0.00038356,120]
[336500479,1724884925008,-1353.05,0.00038356,120]
[336500480,1724884925050,-4592.53,0.00038356,120]
[336500481,1724884925089,-500.0,0.00038356,120]
[336500482,1724884925125,-875.62,0.00038356,120]
[336500483,1724884925167,-3527.33,0.00038356,120]
[336500484,1724884925208,-516.32,0.00038356,120]
[336500485,1724884925249,-211.74651846,0.00038356,120]
[336500486,1724884925284,-1578.8,0.00038356,120]
[336500487,1724884925320,-500.0,0.00038356,120]
[336500488,1724884925354,-650.1,0.00038356,120]
[336500489,1724884925389,-858.65,0.00038356,120]
[336500490,1724884925423,-724.51,0.00038356,120]
[336500491,1724884925458,-525.16,0.00038356,120]
[336500492,1724884925492,-500.0,0.00038356,120]
[336500493,1724884925531,-500.0,0.00038356,120]
[336500494,1724884925566,-646.13,0.00038356,120]
[336500495,1724884925603,-2207.28,0.00038356,120]
[336500496,1724884925640,-712.62,0.00038356,120]
[336500497,1724884925678,-3422.54,0.00038356,120]
[336500498,1724884925718,-1922.58,0.00038356,120]
[336500499,1724884925759,-805.76,0.00038356,120]
[336500500,1724884925800,-510.68,0.00038356,120]
[336500501,1724884925839,-760.7,0.00038356,120]
[336500502,1724884925874,-500.0,0.00038356,120]
[336500503,1724884925914,-500.0,0.00038356,120]
[336500504,1724884925952,-1151.24,0.00038356,120]
[336500505,1724884925994,-5016.57,0.00038356,120]
[336500506,1724884926033,-853.15,0.00038356,120]
[336500507,1724884926074,-2219.57,0.00038356,120]
[336500508,1724884926111,-879.52,0.00038356,120]
[336500509,1724884926145,-500.0,0.00038356,120]
[336500510,1724884926181,-945.45,0.00038356,120]
[336500511,1724884926214,-500.0,0.00038356,120]
[336500512,1724884926250,-1985.82,0.00038356,120]
[336500513,1724884926285,-500.0,0.00038356,120]
[336500514,1724884926319,-1081.87,0.00038356,120]
[336500515,1724884926353,-517.44608903,0.00038356,120]
[336500516,1724884926386,-500.0,0.00038356,120]
[336500517,1724884926424,-16398.76,0.00038356,120]
[336500518,1724884926461,-1426.97,0.00038356,120]
[336500519,1724884926496,-1577.59,0.00038356,120]
[336500520,1724884926533,-858.98,0.00038356,120]
[336500521,1724884926568,-512.70177743,0.00038356,120]
[336500522,1724884926606,-500.0,0.00038356,120]
[336500523,1724884926644,-500.0,0.00038356,120]
[336500524,1724884926680,-838.83,0.00038356,120]
[336500525,1724884926715,-732.52,0.00038356,120]
[336500526,1724884926751,-516.91512152,0.00038356,120]
[336500527,1724884926787,-2795.84,0.00038356,120]
[336500528,1724884926822,-500.0,0.00038356,120]
[336500529,1724884926857,-500.0,0.00038356,120]
[336500530,1724884926896,-1236.81,0.00038356,120]
[336500531,1724884926933,-500.0,0.00038356,120]
[336500532,1724884926971,-927.97,0.00038356,120]
[336500533,1724884927010,-224.64507289,0.00038356,120]
[336500534,1724884927051,-3219.9,0.00038356,120]
[336500535,1724884927087,-581.34,0.00038356,120]
[336500536,1724884927124,-500.0,0.00038356,120]
[336500537,1724884927160,-4622.88,0.00038356,120]
[336500538,1724884927199,-2238.12,0.00038356,120]
[336500539,1724884927233,-1802.31,0.00038356,120]
[336500540,1724884927266,-500.0,0.00038356,120]
[336500541,1724884927298,-1440.88,0.00038356,120]
[336500542,1724884927331,-500.0,0.00038356,120]
[336500543,1724884927364,-2145.91,0.00038356,120]
[336500544,1724884927407,-6457.39,0.00038356,120]
[336500545,1724884927455,-500.0,0.00038356,120]
[336500546,1724884927501,-263.05538114,0.00038356,120]
[336500547,1724884927544,-2119.3,0.00038356,120]
[336500548,1724884927581,-2906.13,0.00038356,120]
[336500549,1724884927617,-954.22,0.00038356,120]
[336500550,1724884927653,-2647.2,0.00038356,120]
[336500551,1724884927689,-500.0,0.00038356,120]
[336500552,1724884927724,-500.0,0.00038356,120]
[336500553,1724884927761,-500.0,0.00038356,120]
[336500554,1724884927796,-500.0,0.00038356,120]
[336500555,1724884927832,-702.32,0.00038356,120]
[336500556,1724884928102,-1366.28,0.00038356,120]
[336500557,1724884928146,-5904.28,0.00038356,120]
[336500558,1724884928185,-500.0,0.00038356,120]
[336500559,1724884928222,-469.01523212,0.00038356,120]
[336500560,1724884928265,-1408.81,0.00038356,120]
[336500561,1724884928307,-3918.57,0.00038356,120]
[336500562,1724884928346,-2360.29,0.00038356,120]
[336500563,1724884928381,-500.0,0.00038356,120]
[336500564,1724884928417,-3259.27,0.00038356,120]
[336500565,1724884928452,-500.0,0.00038356,120]
[336500566,1724884928488,-510.55540019,0.00038356,120]
[336500567,1724884928530,-1805.21,0.00038356,120]
[336500568,1724884928566,-1057.18,0.00038356,120]
[336500569,1724884928600,-500.0,0.00038356,120]
[336500570,1724884928634,-500.0,0.00038356,120]
[336500571,1724884928671,-1080.11,0.00038356,120]
[336500572,1724884928706,-3567.54,0.00038356,120]
[336500573,1724884928743,-2768.24,0.00038356,120]
[336500574,1724884928782,-500.0,0.00038356,120]
[336500575,1724884928817,-510.20084998,0.00038356,120]
[336500576,1724884928852,-929.85,0.00038356,120]
[336500577,1724884928889,-500.0,0.00038356,120]
[336500578,1724884928924,-500.0,0.00038356,120]
[336500579,1724884928961,-1237.29,0.00038356,120]
[336500580,1724884929001,-500.0,0.00038356,120]
[336500581,1724884929040,-1071.47,0.00038356,120]
[336500582,1724884929077,-512.53964043,0.00038356,120]
[336500583,1724884929114,-1179.08,0.00038356,120]
[336500584,1724884929152,-500.0,0.00038356,120]
[336500585,1724884929189,-923.89,0.00038356,120]
[336500586,1724884929226,-500.0,0.00038356,120]
[336500587,1724884929261,-500.0,0.00038356,120]
[336500588,1724884929297,-500.0,0.00038356,120]
[336500589,1724884929333,-500.0,0.00038356,120]
[336500590,1724884929369,-4555.43,0.00038356,120]
[336500591,1724884929403,-500.0,0.00038356,120]
[336500592,1724884929437,-500.0,0.00038356,120]
[336500593,1724884929474,-1145.76,0.00038356,120]
[336500594,1724884929513,-500.0,0.00038356,120]
[336500595,1724884929552,-500.0,0.00038356,120]
[336500596,1724884929592,-2556.34,0.00038356,120]
[336500597,1724884929627,-2223.38,0.00038356,120]
[336500598,1724884929665,-2930.57,0.00038356,120]
[336500599,1724884929701,-858.15,0.00038356,120]
[336500600,1724884929737,-1826.38,0.00038356,120]
[336500601,1724884929777,-1455.66,0.00038356,120]
[336500602,1724884929814,-2943.14,0.00038356,120]
[336500603,1724884929849,-500.0,0.00038356,120]
[336500604,1724884929889,-600.0,0.00038356,120]
[336500605,1724884929927,-500.0,0.00038356,120]
[336500606,1724884929967,-3586.81,0.00038356,120]
[336500607,1724884930005,-642.92,0.00038356,120]
[336500608,1724884930041,-500.0,0.00038356,120]
[336500609,1724884930076,-500.0,0.00038356,120]
[336500610,1724884930111,-1610.74,0.00038356,120]
[336500611,1724884930150,-1992.77,0.00038356,120]
[336500612,1724884930185,-500.0,0.00038356,120]
[336500613,1724884930221,-629.41583124,0.00038356,120]
[336500614,1724884930259,-500.0,0.00038356,120]
[336500615,1724884930294,-2804.78,0.00038356,120]
[336500616,1724884930329,-500.0,0.00038356,120]
[336500617,1724884930363,-500.0,0.00038356,120]
[336500618,1724884930396,-1536.25,0.00038356,120]
[336500619,1724884930428,-2440.8,0.00038356,120]
[336500620,1724884930463,-2916.84,0.00038356,120]
[336500621,1724884930496,-500.0,0.00038356,120]
[336500622,1724884930531,-809.06,0.00038356,120]
[336500623,1724884930567,-600.97,0.00038356,120]
[336500624,1724884930601,-1441.92,0.00038356,120]
[336500625,1724884930636,-5139.77,0.00038356,120]
[336500626,1724884930672,-338.87186225,0.00038356,120]
[336500627,1724884930705,-1171.15,0.00038356,120]
[336500628,1724884930737,-500.0,0.00038356,120]
[336500629,1724884930772,-500.0,0.00038356,120]
[336500630,1724884930806,-1274.5,0.00038356,120]
[336500631,1724884930841,-267.69170971,0.00038356,120]
[336500632,1724884930876,-500.0,0.00038356,120]
[336500633,1724884930916,-625.92,0.00038356,120]
[336500634,1724884930950,-500.0,0.00038356,120]
[336500635,1724884930983,-2068.13,0.00038356,120]
[336500636,1724884931017,-1127.38,0.00038356,120]
[336500637,1724884931054,-2864.69,0.00038356,120]
[336500638,1724884931087,-1355.07,0.00038356,120]
[336500639,1724884931120,-500.0,0.00038356,120]
[336500640,1724884931154,-500.0,0.00038356,120]
[336500641,1724884931190,-3652.27,0.00038356,120]
[336500642,1724884931229,-1321.13,0.00038356,120]
[336500643,1724884931279,-864.13,0.00038356,120]
[336500644,1724884931322,-1147.74,0.00038356,120]
[336500645,1724884931361,-3723.53,0.00038356,120]
[336500646,1724884931399,-500.0,0.00038356,120]
[336500647,1724884931438,-2609.87,0.00038356,120]
[336500648,1724884931474,-2583.82,0.00038356,120]
[336500649,1724884931510,-500.0,0.00038356,120]
[336500650,1724884931547,-603.42,0.00038356,120]
[336500651,1724884931584,-500.0,0.00038356,120]
[336500652,1724884931620,-1028.3,0.00038356,120]
[336500653,1724884931656,-724.47,0.00038356,120]
[336500654,1724884931691,-500.0,0.00038356,120]
[336500655,1724884931724,-500.0,0.00038356,120]
[336500656,1724884931770,-3115.98,0.00038356,120]
[336500657,1724884931810,-500.0,0.00038356,120]
[336500658,1724884931846,-856.67,0.00038356,120]
[336500659,1724884931882,-150.0,0.00038356,120]
[336500660,1724884932138,-500.0,0.00038356,120]
[336500661,1724884932177,-1178.33,0.00038356,120]
[336500662,1724884932213,-500.0,0.00038356,120]
[336500663,1724884932251,-1721.24,0.00038356,120]
[336500664,1724884932301,-814.76,0.00038356,120]
[336500665,1724884932338,-500.0,0.00038356,120]
[336500666,1724884932372,-500.0,0.00038356,120]
[336500667,1724884932406,-2181.83,0.00038356,120]
[336500668,1724884932439,-500.0,0.00038356,120]
[336500669,1724884932471,-500.0,0.00038356,120]
[336500670,1724884932504,-775.96,0.00038356,120]
[336500671,1724884932538,-1121.02579016,0.00038356,120]
[336500672,1724884932574,-1912.04,0.00038356,120]
[336500673,1724884932610,-1368.92,0.00038356,120]
[336500674,1724884932643,-500.0,0.00038356,120]
[336500675,1724884932676,-500.0,0.00038356,120]
[336500676,1724884932707,-1614.96,0.00038356,120]
[336500677,1724884932742,-4437.27,0.00038356,120]
[336500678,1724884932774,-500.0,0.00038356,120]
[336500679,1724884932810,-1843.18,0.00038356,120]
[336500680,1724884932845,-1589.17,0.00038356,120]
[336500681,1724884932882,-877.71,0.00038356,120]
[336500682,1724884932917,-500.0,0.00038356,120]
[336500683,1724884932951,-771.68,0.00038356,120]
[336500684,1724884932988,-645.05,0.00038356,120]
[336500685,1724884933030,-3827.27,0.00038356,120]
[336500686,1724884933072,-1190.61,0.00038356,120]
[336500687,1724884933105,-940.61,0.00038356,120]
[336500688,1724884933140,-500.0,0.00038356,90]
[336500689,1724884933173,-500.0,0.00038356,120]
[336500690,1724884933207,-500.0,0.00038356,120]
[336500691,1724884933246,-4155.57,0.00038356,120]
[336500692,1724884933293,-918.32,0.00038356,120]
[336500693,1724884933326,-651.48,0.00038356,120]
[336500694,1724884933363,-500.0,0.00038356,120]
[336500695,1724884933397,-3256.33,0.00038356,120]
[336500696,1724884933432,-2052.4,0.00038356,120]
[336500697,1724884933467,-500.0,0.00038356,120]
[336500698,1724884933501,-2879.76,0.00038356,120]
[336500699,1724884933544,-5298.75,0.00038356,120]
[336500700,1724884933577,-500.0,0.00038356,120]
[336500701,1724884933611,-500.0,0.00038356,120]
[336500702,1724884933646,-500.0,0.00038356,120]
[336500703,1724884933682,-1168.14,0.00038356,120]
[336500704,1724884933716,-500.0,0.00038356,120]
[336500705,1724884933751,-500.0,0.00038356,120]
[336500706,1724884933804,-1843.37,0.00038356,120]
[336500707,1724884933846,-523.56,0.00038356,120]
[336500708,1724884933883,-500.0,0.00038356,120]
[336500709,1724884933922,-500.0,0.00038356,120]
[336500710,1724884933957,-500.0,0.00038356,120]
[336500711,1724884933995,-500.0,0.00038356,120]
[336500712,1724884934039,-2419.37,0.00038356,120]
[336500713,1724884934077,-524.66,0.00038356,120]
[336500714,1724884934115,-945.22,0.00038356,120]
[336500715,1724884934151,-1860.48,0.00038356,120]
[336500716,1724884934187,-500.0,0.00038356,120]
[336500717,1724884934226,-2462.72,0.00038356,120]
[336500718,1724884934268,-700.4,0.00038356,120]
[336500719,1724884934306,-500.0,0.00038356,120]
[336500720,1724884934341,-500.0,0.00038356,120]
[336500721,1724884934375,-1211.62,0.00038356,120]
[336500722,1724884934410,-500.0,0.00038356,120]
[336500723,1724884934445,-565.93,0.00038356,120]
[336500724,1724884934481,-3392.09,0.00038356,120]
[336500725,1724884934516,-523.08202064,0.00038356,120]
[336500726,1724884934552,-2248.15,0.00038356,120]
[336500727,1724884934586,-2080.06,0.00038356,120]
[336500728,1724884934621,-150.0,0.00038356,120]
[336500729,1724884934657,-500.0,0.00038356,120]
[336500730,1724884934693,-500.0,0.00038356,120]
[336500731,1724884934730,-1895.48,0.00038356,120]
[336500732,1724884934766,-1194.83,0.00038356,120]
[336500733,1724884934801,-1270.94,0.00038356,120]
[336500734,1724884934837,-547.37,0.00038356,120]
[336500735,1724884934877,-2921.42,0.00038356,120]
[336500736,1724884934915,-500.0,0.00038356,120]
[336500737,1724884934950,-228.06376513,0.00038356,120]
[336500738,1724884934986,-1484.18,0.00038356,120]
[336500739,1724884935023,-1000.55,0.00038356,120]
[336500740,1724884935065,-2187.2,0.00038356,120]
[336500741,1724884935103,-500.0,0.00038356,120]
[336500743,1724884935139,-1801.84,0.00038356,120]
[336500744,1724884935175,-500.0,0.00038356,120]
[336500745,1724884935212,-657.58,0.00038356,120]
[336500746,1724884935246,-506.25849524,0.00038356,120]
[336500747,1724884935285,-500.0,0.00038356,120]
[336500748,1724884935320,-17332.0,0.00038356,120]
[336500749,1724884935353,-1454.75,0.00038356,120]
[336500750,1724884935386,-3322.66,0.00038356,120]
[336500751,1724884935418,-500.0,0.00038356,120]
[336500752,1724884935451,-500.0,0.00038356,120]
[336500753,1724884935482,-500.0,0.00038356,120]
[336500754,1724884935517,-500.0,0.00038356,120]
[336500755,1724884935549,-2100.79,0.00038356,120]
[336500756,1724884935581,-500.0,0.00038356,120]
[336500757,1724884935617,-500.0,0.00038356,120]
[336500758,1724884935652,-3286.5,0.00038356,120]
[336500759,1724884935687,-500.0,0.00038356,120]
[336500760,1724884935719,-500.0,0.00038356,120]
[336500761,1724884935753,-500.0,0.00038356,120]
[336500762,1724884935789,-500.0,0.00038356,120]
[336500763,1724884935823,-523.48607601,0.00038356,120]
[336500764,1724884936076,-500.0,0.00038356,120]
[336500765,1724884936121,-655.43,0.00038356,120]
[336500766,1724884936158,-2872.95,0.00038356,120]
[336500767,1724884936197,-2302.75,0.00038356,120]
[336500768,1724884936234,-618.26,0.00038356,120]
[336500769,1724884936273,-668.42,0.00038356,120]
[336500770,1724884936316,-500.0,0.00038356,120]
[336500771,1724884936352,-500.0,0.00038356,120]
[336500772,1724884936389,-589.65,0.00038356,120]
[336500773,1724884936427,-2099.03,0.00038356,120]
[336500774,1724884936464,-500.0,0.00038356,120]
[336500775,1724884936502,-2960.21,0.00038356,120]
[336500776,1724884936540,-500.0,0.00038356,120]
[336500777,1724884936579,-4396.79,0.00038356,120]
[336500778,1724884936617,-593.94,0.00038356,120]
[336500779,1724884936654,-883.0,0.00038356,120]
[336500780,1724884936692,-500.0,0.00038356,120]
[336500781,1724884936728,-500.0,0.00038356,120]
[336500782,1724884936766,-1729.26,0.00038356,120]
[336500783,1724884936802,-775.08,0.00038356,120]
[336500784,1724884936841,-1436.8,0.00038356,120]
[336500785,1724884936880,-502.57469577,0.00038356,120]
[336500786,1724884936917,-1369.56,0.00038356,120]
[336500787,1724884936955,-500.0,0.00038356,120]
[336500788,1724884936998,-500.0,0.00038356,120]
[336500789,1724884937043,-1595.19,0.00038356,120]
[336500790,1724884937080,-1724.07,0.00038356,120]
[336500791,1724884937128,-500.0,0.00038356,120]
[336500792,1724884937165,-3045.35,0.00038356,120]
[336500793,1724884937204,-1773.01,0.00038356,120]
[336500794,1724884937241,-699.75,0.00038356,120]
[336500795,1724884937275,-511.19016829,0.00038356,120]
[336500796,1724884937311,-500.0,0.00038356,120]
[336500797,1724884937347,-721.43,0.00038356,120]
[336500798,1724884937388,-2134.71,0.00038356,120]
[336500799,1724884937423,-500.0,0.00038356,120]
[336500800,1724884937459,-585.47,0.00038356,120]
[336500801,1724884937495,-500.0,0.00038356,120]
[336500802,1724884937532,-895.91,0.00038356,120]
[336500803,1724884937573,-1174.82,0.00038356,120]
[336500804,1724884937610,-659.85,0.00038356,120]
[336500805,1724884937649,-2224.97,0.00038356,120]
[336500806,1724884937688,-5186.12,0.00038356,120]
[336500807,1724884937726,-657.62,0.00038356,120]
[336500808,1724884937766,-1447.73,0.00038356,120]
[336500809,1724884937808,-2609.9,0.00038356,120]
[336500810,1724884937849,-1198.48,0.00038356,120]
[336500811,1724884937891,-1267.24,0.00038356,120]
[336500812,1724884937932,-979.34,0.00038356,120]
[336500813,1724884937972,-2181.47,0.00038356,120]
[336500814,1724884938014,-500.0,0.00038356,120]
[336500815,1724884938057,-2580.18,0.00038356,120]
[336500816,1724884938098,-500.0,0.00038356,120]
[336500817,1724884938138,-500.0,0.00038356,120]
[336500818,1724884938178,-3517.69,0.00038356,120]
[336500819,1724884938217,-1782.4,0.00038356,120]
[336500820,1724884938256,-798.91,0.00038356,120]
[336500821,1724884938306,-2629.56,0.00038356,120]
[336500822,1724884938344,-500.0,0.00038356,120]
[336500823,1724884938382,-500.0,0.00038356,120]
[336500824,1724884938420,-2119.26,0.00038356,120]
[336500825,1724884938457,-560.94,0.00038356,120]
[336500826,1724884938494,-2185.21,0.00038356,120]
[336500827,1724884938528,-500.0,0.00038356,120]
[336500828,1724884938561,-500.0,0.00038356,120]
[336500829,1724884938594,-1243.83,0.00038356,120]
[336500830,1724884938629,-2887.18,0.00038356,120]
[336500831,1724884938663,-2570.86,0.00038356,120]
[336500832,1724884938699,-500.0,0.00038356,120]
[336500833,1724884938733,-500.0,0.00038356,120]
[336500834,1724884938772,-500.0,0.00038356,120]
[336500835,1724884938808,-500.0,0.00038356,120]
[336500836,1724884938841,-500.0,0.00038356,120]
[336500837,1724884938875,-1168.64,0.00038356,120]
[336500838,1724884938911,-500.0,0.00038356,120]
[336500839,1724884938954,-595.19,0.00038356,120]
[336500840,1724884938992,-500.0,0.00038356,120]
[336500841,1724884939032,-509.66,0.00038356,120]
[336500842,1724884939071,-2251.96,0.00038356,120]
[336500843,1724884939108,-1079.75,0.00038356,120]
[336500844,1724884939144,-987.94,0.00038356,120]
[336500845,1724884939182,-6286.38,0.00038356,120]
[336500846,1724884939219,-500.0,0.00038356,120]
[336500847,1724884939257,-959.62,0.00038356,120]
[336500848,1724884939295,-500.0,0.00038356,120]
[336500849,1724884939332,-2125.79,0.00038356,120]
[336500850,1724884939369,-3373.42,0.00038356,120]
[336500851,1724884939404,-500.0,0.00038356,120]
[336500852,1724884939441,-861.0,0.00038356,120]
[336500853,1724884939476,-500.0,0.00038356,120]
[336500854,1724884939514,-626.06,0.00038356,120]
[336500855,1724884939548,-500.0,0.00038356,120]
[336500856,1724884939583,-1927.55,0.00038356,120]
[336500857,1724884939618,-6914.62,0.00038356,120]
[336500858,1724884939652,-500.0,0.00038356,120]
[336500859,1724884939685,-3347.76,0.00038356,120]
[336500860,1724884939719,-516.60492075,0.00038356,120]
[336500861,1724884939755,-520.07457135,0.00038356,120]
[336500862,1724884939792,-3048.83,0.00038356,120]
[336500863,1724884939831,-908.93,0.00038356,120]
[336500864,1724884939870,-500.0,0.00038356,120]
[336500865,1724884939912,-153.10311344,0.00038356,120]
[336500866,1724884939953,-4335.53,0.00038356,120]
[336500867,1724884939993,-733.36,0.00038356,120]
[336500868,1724884940248,-500.0,0.00038356,120]
[336500869,1724884940286,-715.9,0.00038356,120]
[336500870,1724884940322,-202.41430166,0.00038356,120]
[336500871,1724884940358,-750.43,0.00038356,120]
[336500872,1724884940392,-500.0,0.00038356,120]
[336500873,1724884940427,-500.0,0.00038356,120]
[336500874,1724884940459,-1047.3,0.00038356,120]
[336500875,1724884940492,-1362.13,0.00038356,120]
[336500876,1724884940524,-639.3116766,0.00038356,120]
[336500877,1724884940559,-5740.57,0.00038356,120]
[336500878,1724884940591,-1797.01,0.00038356,120]
[336500879,1724884940624,-2094.86,0.00038356,120]
[336500880,1724884940657,-582.75,0.00038356,120]
[336500881,1724884940690,-356.57392098,0.00038356,120]
[336500882,1724884940724,-1420.67,0.00038356,120]
[336500883,1724884940759,-500.0,0.00038356,120]
[336500884,1724884940799,-670.44,0.00038356,120]
[336500885,1724884940834,-1379.04,0.00038356,120]
[336500886,1724884940870,-500.0,0.00038356,120]
[336500887,1724884940914,-500.0,0.00038356,120]
[336500888,1724884940952,-1349.27,0.00038356,120]
[336500889,1724884940992,-500.0,0.00038356,120]
[336500890,1724884941032,-1334.43,0.00038356,120]
[336500891,1724884941072,-1564.42,0.00038356,120]
[336500892,1724884941110,-5020.86,0.00038356,120]
[336500893,1724884941146,-152.33008,0.00038356,120]
[336500894,1724884941183,-822.87,0.00038356,120]
[336500895,1724884941218,-250.465548,0.00038356,120]